[Event "10th Iberoamericano-ch 2024"]
[Site "Linares"]
[Date "2024.09.27"]
[Round "4.1"]
[White "Salinas Herrera, Pablo"]
[Black "Garrido Outon, Alex"]
[Result "0-1"]
[ECO "D35"]
[WhiteElo "2479"]
[BlackElo "2448"]
[Annotator "TA"]
[PlyCount "84"]
[EventDate "2024.09.25"]
[EventType "swiss"]
[EventCountry "ESP"]
[SourceTitle "playchess.com"]
[Source "ChessBase"]
[SourceQuality "1"]
[TimeControl "5400+30"]

{[%evp 25,84,-18,-9,-12,0,0,0,0,0,0,0,0,33,0,29,29,30,32,93,90,111,106,121,29,28,20,29,25,19,30,17,-48,-41,-529,-518,-1792,-1777,-1521,-1487,-1483,-1458,-1255,-1077,-1083,-1075,-962,-962,-29965,-29968,-29984,-29985,-29985,-29986,-29993,-29994,-29994,-29995,-29997,-29998,-29998,-29999]} 1. d4 {[%emt 0:00:07]} d5 {[%emt 0:00:16]} 2. c4 {[%emt 0:01:16]} e6 {[%emt 0:00:21]} 3. Nc3 {[%emt 0:01:11]} Nf6 {[%emt 0:00:11]} 4. cxd5 {[%emt 0:00:04]} exd5 {[%emt 0:00:04]} 5. Bg5 {[%emt 0:00:05]} Bb4 {[%emt 0:04:16]} 6. Nf3 {[%emt 0:05:11]} h6 {[%emt 0:00:49]} 7. Bxf6 {[%emt 0:07:02]} Qxf6 {[%emt 0:00:07]} 8. Qa4+ {[%emt 0:00:02]} Nc6 {[%emt 0:00:10]} 9. e3 {[%emt 0:00:03]} O-O {[%emt 0:01:38]} 10. Be2 {[%emt 0:00:03]} Be6 {[%emt 0:00:26]} 11. O-O {[%emt 0:00:06]} a6 {[%emt 0:00:06]} 12. Rfc1 {[%emt 0:00:05]} Bd6 {[%emt 0:02:15]} 13. Qd1 {[%emt 0:00:06]} Ne7 {[%emt 0:13:29]} 14. Na4 {[%emt 0:04:09]} b6 {[%emt 0:03:04]} 15. b4 {[%emt 0:06:25][%cal Bb2b4,Bb4b5][%mdl 32]} g5 {[%emt 0:02:01]} 16. Nb2 {[%emt 0:00:42] The position is equal.} a5 {[%emt 0:05:27]} 17. b5 {[%emt 0:01:34]} Ng6 {[%emt 0:01:17]} 18. Nd3 {[%emt 0:00:45]} Rae8 {[%emt 0:05:55]} 19. Rc3 {[%emt 0:12:33]} Kg7 {[%emt 0:03:27]} 20. Rac1 {[%emt 0:00:29]} Re7 {[%emt 0:00:47]} 21. Nd2 {[%emt 0:06:18]} h5 {[%emt 0:05:48]} 22. Bxh5 $16 {[%emt 0:02:17]} Rh8 {[%emt 0:00:40][%cal Og5g4]} 23. h3 {[%emt 0:00:16]} Nh4 {[%emt 0:03:19][%cal Oh4g2] [#]} 24. Ne5 $1 {[%emt 0:00:56][%mdl 512]} Nxg2 {[%emt 0:12:46]} 25. Kxg2 {[%emt 0:00:04]} Qh6 $1 {[%emt 0:00:05] Really sharp!} 26. Bg4 {[%emt 0:01:18] Bxe6 is the strong threat.} f5 {[%emt 0:02:59]} 27. Bf3 {[%emt 0:03:46] Hoping for Kf1.} g4 $1 {[%emt 0:02:32]} (27... Qxh3+ $6 28. Kg1 $16) 28. hxg4 {[%emt 0:00:57]} ({White should try} 28. Qh1 $11) 28... fxg4 $15 {[%emt 0:01:19]} 29. Bxg4 $2 {[%emt 0:08:23][%mdl 8192] [#] Now White is beyond hope.} (29. Kf1 $1 $15 gxf3 30. Ndxf3) 29... Bxe5 $1 $19 {[%emt 0:05:17]} 30. dxe5 {[%emt 0:00:51]} (30. Bxe6 $142 Qxe6 31. Qf3 (31. dxe5 $2 {leads to mate.} Qh3+ 32. Kg1 Qh1#) 31... Rh2+ (31... Rf7 32. dxe5 Rxf3 33. Kxf3 $11) 32. Kf1) 30... Qh2+ {[%emt 0:01:49]} 31. Kf1 {[%emt 0:00:03]} Qh1+ {[%emt 0:00:45]} (31... Qxe5 $2 {too greedy.} 32. Qf3 c5 33. Bxe6 (33. bxc6 Rf7 $18) 33... Rxe6 34. Rd3 $18) 32. Ke2 {[%emt 0:00:10]} Bxg4+ {[%emt 0:00:06]} 33. f3 {[%emt 0:00:03]} Qh2+ {[%emt 0:06:49]} 34. Kd3 {[%emt 0:00:04]} Bf5+ {[%emt 0:00:31]} 35. e4 {[%emt 0:00:04]} dxe4+ {[%emt 0:01:31]} 36. fxe4 {[%emt 0:00:04]} Rd7+ {[%emt 0:01:02] Black mates.} 37. Kc2 {[%emt 0:00:04] [#]} Rxd2+ $1 {[%emt 0:00:22][%mdl 512]} 38. Qxd2 {[%emt 0:00:15]} Bxe4+ {[%emt 0:00:04]} 39. Kd1 {[%emt 0:00:51]} Qg1+ {[%emt 0:00:06]} 40. Qe1 {[%emt 0:00:16]} Rd8+ {[%emt 0:00:05]} 41. Ke2 {[%emt 0:00:14]} Qg4+ {[%emt 0:00:04]} 42. Kf2 {[%emt 0:00:24]} Qg2+ {[%emt 0:00:06] Weighted Error Value: White=0.63/Black=0.17 (very precise) .  Loses game:     	White=1     	---        Mistake:       	White=3     	Black=1      Inaccurate:     	White=1     	Black=2      OK:         	White=7     	Black=2      Best:        	White=2     	Black=2      Strong:       	---       	Black=3} 0-1

[Event "10th Iberoamericano-ch 2024"]
[Site "Linares"]
[Date "2024.09.27"]
[Round "4.2"]
[White "Garcia Ramos, Daniel"]
[Black "Flores Quillas, Diego Saul Rodri"]
[Result "1-0"]
[ECO "B62"]
[WhiteElo "2415"]
[BlackElo "2451"]
[Annotator "TA"]
[PlyCount "71"]
[EventDate "2024.09.25"]
[EventType "swiss"]
[EventCountry "ESP"]
[SourceTitle "playchess.com"]
[Source "ChessBase"]
[SourceQuality "1"]
[TimeControl "5400+30"]

{[%evp 12,71,32,15,52,26,29,25,31,44,47,44,37,53,32,34,81,79,88,57,63,37,76,81,79,71,76,73,68,66,66,29,50,47,59,32,42,6,22,14,22,22,62,46,116,110,128,119,137,106,123,140,420,408,1935,201,2007,1820,1714,1801,1993,1872]} 1. e4 {[%emt 0:00:02]} c5 {[%emt 0:11:10]} 2. Nf3 {[%emt 0:00:07][%cal Bg1f3,Bf3d4,Bd4b5][%mdl 32]} d6 {[%emt 0:00:03]} 3. d4 {[%emt 0:00:15]} Nf6 {[%emt 0:00:09]} 4. Nc3 {[%emt 0:00:16]} cxd4 {[%emt 0:00:05]} 5. Nxd4 {[%emt 0:00:07]} Nc6 {[%emt 0:00:04]} 6. Bg5 {[%emt 0:00:33]} e6 {[%emt 0:00:06]} 7. Qd3 {[%emt 0:00:39]} Bd7 {[%emt 0:01:33]} 8. Ndb5 {[%emt 0:00:19]} Nb4 $1 {[%emt 0:00:18]} 9. Qd1 {[%emt 0:00:10]} a6 {[%emt 0:05:15] White has an edge.} 10. Bxf6 {[%emt 0:00:25]} gxf6 {[%emt 0:00:16]} 11. a3 {[%emt 0:00:06]} Nxc2+ {[%emt 0:00:36]} 12. Qxc2 {[%emt 0:00:07]} axb5 {[%emt 0:00:03]} 13. Bxb5 {[%emt 0:00:11]} Bc6 {[%emt 0:01:01] Black is weak on the light squares} (13... Bxb5 $14 {deserves consideration.} 14. Nxb5 Qa5+ 15. Nc3 Bg7) 14. O-O $16 {[%emt 0:01:44]} Be7 {[%emt 0:01:08]} 15. Rad1 {[%emt 0:03:51]} Qb6 {[%emt 0:04:13]} 16. Qe2 {[%emt 0:21:05]} Ra5 {[%emt 0:16:03][%cal Rc6b5]} 17. a4 {[%emt 0:03:49][%cal Ba3a4,Ba4b5][%mdl 32]} Bxb5 {[%emt 0:01:22]} 18. axb5 {[%emt 0:02:11]} (18. Nxb5 Rxa4 19. Rc1 O-O $11) 18... h5 {[%emt 0:16:49]} 19. Rfe1 {[%emt 0:12:53][%cal Bf1e1,Be1e3,Be3h3,Bh3f3][%mdl 32]} Kf8 {[%emt 0:09:10]} 20. Qc4 {[%emt 0:07:18]} Ra8 {[%emt 0:02:33] Repels Qc8+} 21. Re3 {[%emt 0:10:02]} Rg8 {[%emt 0:04:07]} 22. Rh3 {[%emt 0:11:31]} Rh8 {[%emt 0:09:49]} 23. b4 {[%emt 0:04:04]} h4 {[%emt 0:01:31]} 24. Rf3 {[%emt 0:05:52]} Rh6 {[%emt 0:04:50]} 25. h3 {[%emt 0:00:37]} Kg7 {[%emt 0:00:47]} 26. Rf4 {[%emt 0:01:00]} Kh8 {[%emt 0:01:36]} 27. Rg4 {[%emt 0:06:53]} Rg8 {[%emt 0:02:11]} ({Better is} 27... Rh5 $14) 28. Rxg8+ {[%emt 0:00:29]} Kxg8 {[%emt 0:00:04]} 29. Ra1 {[%emt 0:00:27] [#] Ra8+ would now be deadly. White is more active.} Kg7 {[%emt 0:01:06][%cal Bg8g7,Bg7h6,Bh6g6][%mdl 32]} 30. Ra8 {[%emt 0:00:42]} d5 {[%emt 0:03:27]} 31. Qc8 $40 {[%emt 0:02:24][%csl Ga8][%cal Rc8g8][%mdl 128] White is out for blood.} Rh7 $2 {[%emt 0:00:02][%mdl 8192] [#] A mistake that costs the game.} (31... f5 $16) 32. Nxd5 $1 $18 {[%emt 0:03:06]} (32. exd5 Qd4 $18) 32... Qd6 {[%emt 0:01:33]} ({Weaker is} 32... exd5 33. Qg4+ Kh6 34. Qxh4+ Kg7 35. Qg4+ Kh6 36. Rg8 (36. exd5 f5 $15) 36... f5 37. Qf4+ (37. exf5 Qd6 $18) 37... Kh5 38. g4+ (38. exf5 Qd6 39. Qg4+ Kh6 40. h4 Bd8 41. Rg5 Qh2+ 42. Kxh2 Bc7+ 43. Kh3 Rh8 44. Rh5#) (38. Qxf5+ Kh6 39. Qf4+ Kh5 40. g4+ Kh4 41. Qg3#) 38... fxg4 39. hxg4+ Kh4 40. Qh2#) (32... Qd4 $142) 33. Qg8+ {[%emt 0:01:10]} Kh6 {[%emt 0:00:02]} 34. Ne3 {[%emt 0:00:15] Intending Ng4+ and mate. White is clearly winning.} Rg7 {[%emt 0:00:51]} 35. Qh8+ {[%emt 0:00:08]} Kg6 {[%emt 0:00:01]} 36. Rg8 {[%emt 0:00:50] Weighted Error Value: White=0.07 (flawless) /Black=0.28 (precise) .  Loses game:     	---       	Black=1      Mistake:       	---       	Black=3      Inaccurate:     	White=6     	Black=3      OK:         	White=8     	Black=7      Best:        	White=5     	---        Strong:       	White=1     	Black=1} (36. Qxh4 f5 37. exf5+ exf5 $18) 1-0

[Event "10th Iberoamericano-ch 2024"]
[Site "Linares"]
[Date "2024.09.27"]
[Round "4.3"]
[White "Rodriguez Vila, Andres"]
[Black "Vallejo Pons, Francisco"]
[Result "1-0"]
[ECO "B06"]
[WhiteElo "2417"]
[BlackElo "2657"]
[Annotator "RC"]
[PlyCount "55"]
[EventDate "2024.09.25"]
[EventType "swiss"]
[EventCountry "ESP"]
[SourceTitle "playchess.com"]
[Source "ChessBase"]
[SourceQuality "1"]
[TimeControl "5400+30"]

1. d4 {[%emt 0:00:04]} g6 {[%emt 0:00:01]} 2. e4 {[%emt 0:00:55]} Bg7 {[%emt 0:01:22]} 3. Nc3 {[%emt 0:00:49]} d6 {[%emt 0:00:27]} 4. Be3 {[%emt 0:00:06]} a6 {[%emt 0:00:21]} 5. g4 {[%emt 0:01:06]} b5 {[%emt 0:03:11]} 6. Bg2 {[%emt 0:00:39]} Bb7 {[%emt 0:17:46]} 7. h4 {[%emt 0:00:20]} h6 {[%emt 0:00:21]} 8. f4 {[%emt 0:01:53]} Nd7 {[%emt 0:11:41]} 9. d5 {[%emt 0:05:56]} c5 {[%emt 0:05:50]} 10. dxc6 {[%emt 0:00:34]} Bxc6 {[%emt 0:01:26]} 11. Nge2 {[%emt 0:00:05]} Ngf6 {[%emt 0:08:41]} 12. Nd4 {[%emt 0:01:46]} Bb7 {[%emt 0:00:16]} 13. g5 {[%emt 0:01:25]} hxg5 {[%emt 0:06:13]} 14. hxg5 {[%emt 0:00:16]} Rxh1+ {[%emt 0:00:07]} 15. Bxh1 {[%emt 0:00:03]} Nh5 {[%emt 0:06:01]} 16. f5 {[%emt 0:07:59]} Ng3 {[%emt 0:09:48]} 17. fxg6 {[%emt 0:05:41]} fxg6 {[%emt 0:00:12]} 18. Qf3 {[%emt 0:01:56]} Bxd4 {[%emt 0:07:56]} 19. Bxd4 {[%emt 0:00:19]} Nf5 {[%emt 0:00:04]} 20. Bf2 {[%emt 0:06:40]} Ne5 {[%emt 0:03:15]} 21. Qh3 {[%emt 0:00:42]} Ng7 {[%emt 0:00:23]} 22. Bd4 {[%emt 0:06:53]} Nh5 {[%emt 0:01:17]} 23. O-O-O {[%emt 0:09:10]} Qc8 {[%emt 0:01:51]} 24. Qh4 {[%emt 0:03:38]} b4 {[%emt 0:05:38]} 25. Nd5 {[%emt 0:03:24]} Bxd5 {[%emt 0:00:58]} 26. exd5 {[%emt 0:00:11]} Qc4 {[%emt 0:01:26]} 27. Be4 {[%emt 0:04:38]} Kf7 {[%emt 0:01:21]} 28. Bxe5 {[%emt 0:00:35]} 1-0

[Event "10th Iberoamericano-ch 2024"]
[Site "Linares"]
[Date "2024.09.27"]
[Round "4.4"]
[White "Pichot, Alan"]
[Black "Merario Alarcon, Andres"]
[Result "1/2-1/2"]
[ECO "C55"]
[WhiteElo "2628"]
[BlackElo "2408"]
[Annotator "TA"]
[PlyCount "71"]
[EventDate "2024.09.25"]
[EventType "swiss"]
[EventCountry "ESP"]
[SourceTitle "playchess.com"]
[Source "ChessBase"]
[SourceQuality "1"]
[TimeControl "5400+30"]

{[%evp 12,71,63,36,55,33,53,39,38,44,41,36,35,32,16,18,29,16,17,19,27,6,6,0,0,0,0,0,0,0,0,0,0,0,0,0,0,0,0,0,0,0,0,0,0,0,0,0,0,0,0,0,17,-45,0,-7,-6,-48,0,0,0,0]} 1. e4 {[%emt 0:03:03]} e5 {[%emt 0:01:47]} 2. Nf3 {[%emt 0:00:08]} Nc6 {[%emt 0:00:08]} 3. Bc4 {[%emt 0:00:12]} Nf6 {[%emt 0:00:34]} 4. d3 {[%emt 0:00:10]} d5 {[%emt 0:00:27]} 5. exd5 {[%emt 0:00:06]} Nxd5 {[%emt 0:00:05]} 6. O-O {[%emt 0:00:43]} Bg4 {[%emt 0:00:05]} 7. Re1 {[%emt 0:03:22][%cal Of3e5] [#] Black must now prevent Nxe5!} Bb4 {[%emt 0:00:40]} 8. Bd2 {[%emt 0:06:03][%cal Of3e5] Nxe5! would now be deadly.} O-O {[%emt 0:00:24]} 9. h3 {[%emt 0:01:52]} Bxf3 {[%emt 0:00:18] White is slightly better.} 10. Qxf3 {[%emt 0:00:36]} Bxd2 {[%emt 0:00:15]} 11. Nxd2 {[%emt 0:00:08]} Nb6 {[%emt 0:00:04]} 12. c3 {[%emt 0:18:40]} Nxc4 {[%emt 0:00:39]} 13. Nxc4 {[%emt 0:00:14]} f6 {[%emt 0:04:43]} 14. b4 {[%emt 0:01:09]} Qd7 {[%emt 0:04:48]} 15. a4 {[%emt 0:09:44]} a6 {[%emt 0:26:11]} 16. Red1 {[%emt 0:03:10]} Rad8 {[%emt 0:11:37]} 17. Rab1 {[%emt 0:10:53]} Ne7 {[%emt 0:17:30]} 18. Qxb7 {[%emt 0:08:04]} Nd5 {[%emt 0:01:47]} 19. Rbc1 {[%emt 0:00:18]} (19. Qxa6 $2 {too greedy.} Ra8 (19... Nxc3 20. Nxe5 fxe5 21. Qc4+ Nd5 22. a5 $19) 20. Nxe5 fxe5 $19) 19... Qxa4 {[%emt 0:02:24][%cal Od5c3]} 20. Ne3 $1 {[%emt 0:01:25]} Qb5 {[%emt 0:05:22]} 21. Qxb5 {[%emt 0:03:45]} axb5 {[%emt 0:00:05]} 22. d4 {[%emt 0:00:15]} exd4 {[%emt 0:03:09]} 23. cxd4 {[%emt 0:01:58]} Rf7 {[%emt 0:04:22]} 24. Rc5 {[%emt 0:02:08][%csl LRb5,LRd5]} Rfd7 {[%emt 0:00:35]} 25. Rb1 {[%emt 0:14:37]} (25. Rxb5 $2 {is the wrong capture.} Nc3 26. Rc5 Nxd1 27. Nxd1 Rxd4 $19) 25... Nf4 {[%emt 0:01:50]} 26. Kh2 {[%emt 0:00:25]} Rxd4 {[%emt 0:01:14]} 27. Rxc7 {[%emt 0:00:25]} Nd3 {[%emt 0:05:02]} 28. Ra1 {[%emt 0:03:16] [#] Hoping for Raa7.} R4d7 {[%emt 0:00:22]} 29. Raa7 {[%emt 0:00:32]} Rxc7 {[%emt 0:02:06]} 30. Rxc7 {[%emt 0:00:05]} Nxb4 $11 {[%emt 0:01:25][%mdl 4096] Endgame. KRN-KRN} 31. Nf5 {[%emt 0:00:09]} Nd3 {[%emt 0:03:16]} 32. Kg3 {[%emt 0:08:06]} (32. Rxg7+ $11 Kf8 (32... Kh8 33. Rb7 $11) 33. Rxh7) 32... Kh8 {[%emt 0:01:58]} 33. Rb7 {[%emt 0:00:27]} b4 {[%emt 0:00:49]} 34. Kf3 {[%emt 0:00:31][%cal Of3e3]} Ne5+ {[%emt 0:00:29]} (34... g6 $15 {is more appropriate.} 35. Ne3 Rd4) 35. Ke4 {[%emt 0:00:28]} g6 {[%emt 0:00:33]} 36. Nd4 {[%emt 0:00:47] Weighted Error Value: White=0.08 (flawless) /Black=0.05 (flawless) .  Mistake:       	White=1     	Black=1      Inaccurate:     	White=1     	Black=1      OK:         	White=10    	Black=19     Best:        	White=2     	Black=1      Strong:       	White=1     	---} 1/2-1/2

[Event "10th Iberoamericano-ch 2024"]
[Site "Linares"]
[Date "2024.09.27"]
[Round "4.5"]
[White "Quesada Perez, Luis Ernesto"]
[Black "Fernandez Sanchez, Fernando Miguel"]
[Result "1-0"]
[ECO "D52"]
[WhiteElo "2578"]
[BlackElo "2399"]
[Annotator "TA"]
[PlyCount "55"]
[EventDate "2024.09.25"]
[EventType "swiss"]
[EventCountry "ESP"]
[SourceTitle "playchess.com"]
[Source "ChessBase"]
[SourceQuality "1"]
[TimeControl "5400+30"]

{[%evp 22,55,24,6,15,11,19,28,20,26,14,0,6,-12,-17,-14,-15,-53,-54,-57,75,89,114,116,191,165,256,239,462,462,541,541,508,504,874,851]} 1. d4 {[%emt 0:00:05]} Nf6 {[%emt 0:12:06]} 2. c4 {[%emt 0:00:07]} e6 {[%emt 0:00:04]} 3. Nf3 {[%emt 0:00:09]} d5 {[%emt 0:00:19]} 4. Nc3 {[%emt 0:00:08]} c6 {[%emt 0:00:17]} 5. Bg5 {[%emt 0:02:40]} Nbd7 {[%emt 0:00:08]} 6. e3 {[%emt 0:00:32]} Qa5 {[%emt 0:00:11]} 7. Nd2 {[%emt 0:00:53]} Bb4 {[%emt 0:00:07]} 8. Qc2 {[%emt 0:00:06]} dxc4 {[%emt 0:00:06]} 9. Bxf6 {[%emt 0:00:07]} Nxf6 {[%emt 0:00:03]} 10. Nxc4 {[%emt 0:00:09]} Qc7 {[%emt 0:00:04]} 11. a3 {[%emt 0:00:09]} Be7 {[%emt 0:00:12]} 12. Be2 {[%emt 0:01:30]} c5 {[%emt 0:02:19]} 13. Nb5 {[%emt 0:03:01] Excellent horsemanship.} Qb8 {[%emt 0:00:22]} 14. dxc5 {[%emt 0:00:08]} Bxc5 {[%emt 0:00:15] White has an edge.} 15. b4 {[%emt 0:01:11]} Be7 {[%emt 0:00:08]} 16. Na5 {[%emt 0:01:32] Black must now prevent Nc7+.} O-O {[%emt 0:00:24]} 17. Nc7 {[%emt 0:03:11] [#]} b6 $1 {[%emt 0:00:24]} 18. Nxa8 {[%emt 0:00:52]} bxa5 {[%emt 0:00:31]} 19. Nc7 {[%emt 0:01:02]} Bb7 {[%emt 0:35:46][%mdl 1024] Black has compensation.} 20. Na6 $1 {[%emt 0:03:08]} (20. bxa5 $2 Rc8 (20... Bxg2 $2 21. Rg1 $17) 21. Qb2 Qxc7 $19 (21... Rxc7 22. a6 $11)) 20... Qe5 {[%emt 0:00:18]} (20... Qa8 $1 $15 {keeps the upper hand.} 21. O-O (21. bxa5 Bxa6 22. Bxa6 Qxg2 $19) 21... Bxg2) 21. O-O $16 {[%emt 0:00:47][%cal Bh1f1,Bf1c1,Bc1c7][%mdl 32]} Rc8 {[%emt 0:24:00] Prevents Nc5} 22. Qd3 {[%emt 0:25:08]} Qg5 {[%emt 0:09:51]} (22... Rd8 $16 23. Qb5 Bd5) 23. g3 $18 {[%emt 0:02:19]} Qh6 {[%emt 0:04:22]} (23... Rd8 $142 24. Qb5 Qd5 25. Qxd5 (25. bxa5 $2 Qh1#) 25... Nxd5) 24. Rac1 {[%emt 0:06:32] [#] Rxc8+ would now be deadly.} (24. bxa5 $2 Qh3 25. f3 Ng4 $19) 24... Rxc1 {[%emt 0:00:21]} (24... Rf8 {might work better.} 25. Nc5 (25. bxa5 $2 {perishes.} Qh3 $19) 25... Ba8) 25. Rxc1 {[%emt 0:00:02] White is clearly winning.} Qh3 {[%emt 0:00:06]} 26. Bf1 {[%emt 0:01:19] Inhibits Qg2+.} (26. bxa5 $2 Qg2#) 26... Qh5 {[%emt 0:00:10]} 27. Rc7 {[%emt 0:12:17][%csl LRb7,LRe7]} Ng4 {[%emt 0:01:21]} (27... Qf3 $142 28. e4 (28. Rxe7 $2 Qh1#) 28... Qxd3 29. Bxd3 Bxa6 30. Bxa6 Bd6) 28. h3 {[%emt 0:00:19] Weighted Error Value: White=0.06 (flawless) /Black=0.63.  Mistake:       	---       	Black=5      Inaccurate:     	White=1     	---        OK:         	White=8     	Black=6      Best:        	White=3     	---        Strong:       	White=1     	Black=1} (28. Rxe7 $2 Qxh2#) 1-0

[Event "10th Iberoamericano-ch 2024"]
[Site "Linares"]
[Date "2024.09.27"]
[Round "4.6"]
[White "Ynojosa Aponte, Felix Jose"]
[Black "Iturrizaga Bonelli, Eduardo"]
[Result "1/2-1/2"]
[ECO "A25"]
[WhiteElo "2398"]
[BlackElo "2577"]
[Annotator "RC"]
[PlyCount "24"]
[EventDate "2024.09.25"]
[EventType "swiss"]
[EventCountry "ESP"]
[SourceTitle "playchess.com"]
[Source "ChessBase"]
[SourceQuality "1"]
[TimeControl "5400+30"]

1. c4 {[%emt 0:01:16]} e5 {[%emt 0:07:11]} 2. Nc3 {[%emt 0:00:29]} Nc6 {[%emt 0:01:17]} 3. e3 {[%emt 0:00:58]} Nf6 {[%emt 0:00:48]} 4. a3 {[%emt 0:02:05]} d5 {[%emt 0:07:55]} 5. cxd5 {[%emt 0:00:05]} Nxd5 {[%emt 0:00:04]} 6. Qc2 {[%emt 0:00:24]} Nxc3 {[%emt 0:15:00]} 7. bxc3 {[%emt 0:03:07]} Bd6 {[%emt 0:00:07]} 8. c4 {[%emt 0:01:06]} O-O {[%emt 0:00:59]} 9. c5 {[%emt 0:03:20]} Be7 {[%emt 0:00:08]} 10. Bb2 {[%emt 0:00:05]} Be6 {[%emt 0:16:41]} 11. Nf3 {[%emt 0:22:19]} Qd5 {[%emt 0:00:39]} 12. Rc1 {[%emt 0:00:11]} e4 {[%emt 0:29:57]} 1/2-1/2

[Event "10th Iberoamericano-ch 2024"]
[Site "Linares"]
[Date "2024.09.27"]
[Round "4.7"]
[White "Cesar Maestre, Bernardo"]
[Black "Avila Pavas, Santiago"]
[Result "1/2-1/2"]
[ECO "B27"]
[WhiteElo "2369"]
[BlackElo "2485"]
[Annotator "TA"]
[PlyCount "102"]
[EventDate "2024.09.25"]
[EventType "swiss"]
[EventCountry "ESP"]
[SourceTitle "playchess.com"]
[Source "ChessBase"]
[SourceQuality "1"]
[TimeControl "5400+30"]

{[%evp 15,102,2,17,28,10,-24,0,0,0,-6,-16,-10,7,-27,-37,-19,-15,-14,-9,-46,-29,-45,-47,-43,-41,-37,-43,-42,-44,-43,0,-56,-58,-60,-11,-53,-66,-54,-50,-52,-50,-40,-43,-35,-52,-35,-34,-43,-41,-39,-39,-50,-26,-40,-40,-42,-49,-43,-29,-59,-59,-92,0,0,0,0,0,0,0,0,6,6,8,0,0,0,11,11,12,0,0,0,0,0,0,0,0,0,0]} 1. e4 {[%emt 0:00:21]} c5 {[%emt 0:02:59]} 2. Nf3 {[%emt 0:00:19]} g6 {[%emt 0:01:06]} 3. c3 {[%emt 0:00:12]} Nf6 {[%emt 0:01:29]} 4. e5 {[%emt 0:01:06]} Nd5 {[%emt 0:00:04]} 5. d4 {[%emt 0:00:40]} cxd4 {[%emt 0:00:05]} 6. cxd4 {[%emt 0:00:14]} Bg7 {[%emt 0:01:09]} 7. Bc4 {[%emt 0:09:08]} Nb6 {[%emt 0:04:46]} 8. Bb3 {[%emt 0:01:35]} Nc6 {[%emt 0:32:27]} 9. a4 {[%emt 0:27:40][%cal Ba2a4,Ba4a5][%mdl 32] [#] Black must now prevent a5.} d5 {[%emt 0:02:15]} 10. exd6 {[%emt 0:09:10]} Qxd6 {[%emt 0:06:34][%cal Rc6d4]} 11. a5 {[%emt 0:03:49]} Nd7 {[%emt 0:00:30][%cal Rg7d4]} 12. Be3 {[%emt 0:00:30]} O-O {[%emt 0:00:30]} 13. Nc3 {[%emt 0:00:30]} Nf6 {[%emt 0:00:30]} (13... b6 {keeps more tension.} 14. Ne4 Qb8 15. Bd5 Nb4) 14. h3 {[%emt 0:00:30]} Qd8 {[%emt 0:00:30]} 15. a6 {[%emt 0:00:30]} bxa6 {[%emt 0:19:08]} 16. O-O {[%emt 0:30:18]} Bb7 {[%emt 0:06:45]} 17. Qe2 {[%emt 0:00:30]} Rb8 {[%emt 0:09:05]} 18. Rfd1 {[%emt 0:04:53]} Na5 {[%emt 0:01:32]} 19. Ba2 {[%emt 0:00:12]} Bxf3 {[%emt 0:00:46]} 20. Qxf3 {[%emt 0:00:04]} Rxb2 {[%emt 0:00:17]} 21. Na4 {[%emt 0:00:36]} Rb5 {[%emt 0:01:23]} 22. Nc5 {[%emt 0:01:10]} Nd7 {[%emt 0:02:55]} 23. Rab1 {[%emt 0:03:54]} (23. Rac1 $11) 23... Rxb1 $15 {[%emt 0:00:52]} 24. Rxb1 {[%cal Oa2f7]} Nb6 (24... Nxc5 $15 {was preferrable.} 25. dxc5 Qc7) 25. Nb7 {[%emt 0:02:11]} Nxb7 {[%emt 0:00:18]} 26. Qxb7 {[%emt 0:00:07]} Bxd4 {[%emt 0:03:32]} 27. Bxd4 {[%emt 0:00:05]} Qxd4 {[%emt 0:00:03]} 28. Qxa7 {[%emt 0:00:06]} Qd2 {[%emt 0:01:08]} 29. Bxf7+ {[%emt 0:01:40]} Rxf7 {[%emt 0:00:04]} 30. Qxb6 {[%emt 0:00:06][%mdl 4096] Endgame. KQR-KQR} Rf6 31. Qc5 {[%emt 0:00:26]} Kf7 {[%emt 0:01:25]} 32. Qc4+ {[%emt 0:00:05]} Kg7 {[%emt 0:00:11]} 33. Qc5 {[%emt 0:00:05]} Qd6 {[%emt 0:00:11]} 34. Qe3 {[%emt 0:01:00]} Re6 {[%emt 0:00:15]} 35. Qc3+ {[%emt 0:00:32]} Qe5 {[%emt 0:00:04]} 36. Qc4 {[%emt 0:00:57]} Rf6 {[%emt 0:01:59]} 37. Qa2 {[%emt 0:01:16]} h5 {[%emt 0:01:07]} 38. h4 {[%emt 0:01:05]} g5 {[%emt 0:00:14]} (38... a5 $17) 39. hxg5 $11 {[%emt 0:00:06] The position is equal.} Qxg5 {[%emt 0:00:00]} 40. Re1 {[%emt 0:01:17]} Rg6 {[%emt 0:00:14][%csl Gg6][%cal Rg5g2] [#]} 41. Qb2+ {[%emt 0:00:05]} Kh7 {[%emt 0:01:06][%csl Gg6][%cal Rg5g2]} 42. Qb7 {[%emt 0:00:10]} Rg7 {[%emt 0:00:04]} 43. Qe4+ {[%emt 0:00:12]} (43. Qxa6 $2 Qxg2#) 43... Kh6 {[%emt 0:01:09]} 44. Qc6+ {[%emt 0:01:16]} Rg6 {[%emt 0:00:53]} 45. Qb7 {[%emt 0:00:05]} e5 {[%emt 0:00:40]} 46. Qa8 {[%emt 0:00:36][%mdl 1024] White has compensation.} Kh7 {[%emt 0:00:39] Inhibits Qh8+.} 47. Rd1 {[%emt 0:01:10]} Rg7 {[%emt 0:00:05]} 48. Rd8 {[%emt 0:00:28] Hoping for Rh8+.} (48. Qxa6 $2 Qxg2#) 48... Qc1+ {[%emt 0:00:30]} 49. Kh2 {[%emt 0:00:04] Intending Qe4+ and mate.} Qf4+ {[%emt 0:00:09]} 50. Kg1 {Strongly threatening Rh8+.} Qc1+ {[%emt 0:00:52]} 51. Kh2 {[%emt 0:00:09] White wants to mate with Qe4+.} Qf4+ {[%emt 0:00:03] Weighted Error Value: White=0.09 (flawless) /Black=0.08 (flawless) .  Mistake:       	White=1     	Black=2      Inaccurate:     	White=6     	Black=1      OK:         	White=21    	Black=22     Best:        	White=3     	Black=2} 1/2-1/2